[Event "Titled Tuesday Blitz June 13 Late 2023"]
[White "Ronka, Erik"]
[Black "Melikhov, Evgeny V."]
[WhiteFideId "505080"]
[BlackFideId "4122046"]
[WhiteElo "2264"]
[BlackElo "2158"]
[Result "1-0"]
[Round "5"]
[TimeControl "180+2"]
[Date "2023.06.13"]
[WhiteClock "0:00:08"]
[BlackClock "0:00:07"]
[Board "122"]

1. e4 {[%clk 0:03:00]}  e5 {[%clk 0:02:59]} 2. Nf3 {[%clk 0:03:00]}  Nc6 {[%clk 0:02:59]} 3. Bb5 {[%clk 0:02:59]}  a6 {[%clk 0:02:59]} 4. Ba4 {[%clk 0:02:58]}  Nf6 {[%clk 0:02:59]} 5. O-O {[%clk 0:02:57]}  Nxe4 {[%clk 0:02:58]} 6. d4 {[%clk 0:02:55]}  b5 {[%clk 0:02:59]} 7. Bb3 {[%clk 0:02:56]}  d5 {[%clk 0:02:59]} 8. dxe5 {[%clk 0:02:56]}  Be6 {[%clk 0:03:00]} 9. Nbd2 {[%clk 0:02:56]}  Bc5 {[%clk 0:02:59]} 10. c3 {[%clk 0:02:54]}  O-O {[%clk 0:02:58]} 11. Bc2 {[%clk 0:02:52]}  Nxf2 {[%clk 0:02:58]} 12. Rxf2 {[%clk 0:02:47]}  f6 {[%clk 0:02:58]} 13. Nf1 {[%clk 0:02:32]}  Bxf2+ {[%clk 0:02:53]} 14. Kxf2 {[%clk 0:02:31]}  fxe5 {[%clk 0:02:53]} 15. Kg1 {[%clk 0:02:21]}  e4 {[%clk 0:02:46]} 16. Nd4 {[%clk 0:02:04]}  Nxd4 {[%clk 0:02:40]} 17. Qxd4 {[%clk 0:02:05]}  Qh4 {[%clk 0:02:12]} 18. Be3 {[%clk 0:02:01]}  Rf6 {[%clk 0:01:58]} 19. Qe5 {[%clk 0:01:29]}  c6 {[%clk 0:01:35]} 20. Qg3 {[%clk 0:01:21]}  Qxg3 {[%clk 0:01:31]} 21. Nxg3 {[%clk 0:01:20]}  g6 {[%clk 0:01:22]} 22. a4 {[%clk 0:01:19]}  Raf8 {[%clk 0:01:15]} 23. Ne2 {[%clk 0:01:18]}  Bd7 {[%clk 0:01:12]} 24. Bc5 {[%clk 0:01:16]}  R8f7 {[%clk 0:01:11]} 25. axb5 {[%clk 0:01:14]}  axb5 {[%clk 0:01:06]} 26. Ra8+ {[%clk 0:01:10]}  Kg7 {[%clk 0:01:01]} 27. Bd4 {[%clk 0:01:09]}  Kh6 {[%clk 0:00:56]} 28. Bxf6 {[%clk 0:01:08]}  Rxf6 {[%clk 0:00:57]} 29. Ra7 {[%clk 0:01:03]}  Rd6 {[%clk 0:00:48]} 30. b4 {[%clk 0:01:00]}  Kg5 {[%clk 0:00:46]} 31. Kf2 {[%clk 0:01:00]}  Kf6 {[%clk 0:00:44]} 32. Ke3 {[%clk 0:01:00]}  Ke5 {[%clk 0:00:43]} 33. Nd4 {[%clk 0:00:53]}  h5 {[%clk 0:00:39]} 34. Nb3 {[%clk 0:00:51]}  Bf5 {[%clk 0:00:30]} 35. Nc5 {[%clk 0:00:31]}  Rd8 {[%clk 0:00:27]} 36. Re7+ {[%clk 0:00:25]}  Kf6 {[%clk 0:00:26]} 37. Rc7 {[%clk 0:00:25]}  Rd6 {[%clk 0:00:25]} 38. Bd1 {[%clk 0:00:22]}  Kg5 {[%clk 0:00:22]} 39. Be2 {[%clk 0:00:20]}  Rf6 {[%clk 0:00:21]} 40. Nb3 {[%clk 0:00:18]}  h4 {[%clk 0:00:20]} 41. Nd4 {[%clk 0:00:18]}  Bg4 {[%clk 0:00:19]} 42. Bxg4 {[%clk 0:00:17]}  Kxg4 {[%clk 0:00:20]} 43. Rxc6 {[%clk 0:00:18]}  Rf1 {[%clk 0:00:20]} 44. Rxg6+ {[%clk 0:00:17]}  Kh5 {[%clk 0:00:20]} 45. Rg8 {[%clk 0:00:15]}  Rc1 {[%clk 0:00:20]} 46. Ne2 {[%clk 0:00:14]}  Rd1 {[%clk 0:00:19]} 47. g4+ {[%clk 0:00:10]}  hxg3 {[%clk 0:00:19]} 48. hxg3 {[%clk 0:00:11]}  Rd3+ {[%clk 0:00:18]} 49. Kf4 {[%clk 0:00:11]}  Rf3+ {[%clk 0:00:18]} 50. Ke5 {[%clk 0:00:12]}  Rf2 {[%clk 0:00:18]} 51. Nf4+ {[%clk 0:00:11]}  Kh6 {[%clk 0:00:18]} 52. Kd4 {[%clk 0:00:10]}  Rf3 {[%clk 0:00:17]} 53. Nxd5 {[%clk 0:00:08]}  Rd3+ {[%clk 0:00:13]} 54. Kxe4 {[%clk 0:00:08]}  Rd1 {[%clk 0:00:14]} 55. Rb8 {[%clk 0:00:07]}  Kg5 {[%clk 0:00:13]} 56. Rxb5 {[%clk 0:00:07]}  Kg6 {[%clk 0:00:13]} 57. Nf4+ {[%clk 0:00:06]}  Kf7 {[%clk 0:00:13]} 58. c4 {[%clk 0:00:07]}  Ke7 {[%clk 0:00:13]} 59. c5 {[%clk 0:00:07]}  Kd7 {[%clk 0:00:13]} 60. Rb6 {[%clk 0:00:07]}  Kc7 {[%clk 0:00:13]} 61. Rd6 {[%clk 0:00:08]}  Re1+ {[%clk 0:00:13]} 62. Kf5 {[%clk 0:00:08]}  Rg1 {[%clk 0:00:13]} 63. g4 {[%clk 0:00:08]}  Rf1 {[%clk 0:00:12]} 64. g5 {[%clk 0:00:08]}  Rg1 {[%clk 0:00:12]} 65. g6 {[%clk 0:00:08]}  Rg3 {[%clk 0:00:12]} 66. Kf6 {[%clk 0:00:08]}  Rg4 {[%clk 0:00:11]} 67. Rd4 {[%clk 0:00:08]}  Kc6 {[%clk 0:00:10]} 68. g7 {[%clk 0:00:08]}  Kb5 {[%clk 0:00:07]} 69. Kf7 {[%clk 0:00:08]} 1-0


[Site "https://www.chess.com"]

[Event "Titled Tuesday Blitz June 13 Late 2023"]
[White "Burdalev, Kirill"]
[Black "Baches Garcia, Guillermo"]
[WhiteFideId "14121913"]
[BlackFideId "2209764"]
[WhiteElo "2236"]
[BlackElo "2475"]
[Result "0-1"]
[Round "5"]
[TimeControl "180+2"]
[Date "2023.06.13"]
[WhiteClock "0:00:01"]
[BlackClock "0:00:15"]
[Board "124"]

1. d4 {[%clk 0:02:56]}  Nf6 {[%clk 0:02:59]} 2. c4 {[%clk 0:02:55]}  e6 {[%clk 0:03:00]} 3. Nf3 {[%clk 0:02:51]}  d5 {[%clk 0:02:59]} 4. Nc3 {[%clk 0:02:51]}  c5 {[%clk 0:02:58]} 5. cxd5 {[%clk 0:02:51]}  Nxd5 {[%clk 0:02:59]} 6. e4 {[%clk 0:02:51]}  Nxc3 {[%clk 0:02:59]} 7. bxc3 {[%clk 0:02:52]}  cxd4 {[%clk 0:03:00]} 8. cxd4 {[%clk 0:02:52]}  Bb4+ {[%clk 0:03:00]} 9. Bd2 {[%clk 0:02:52]}  Bxd2+ {[%clk 0:03:01]} 10. Qxd2 {[%clk 0:02:53]}  O-O {[%clk 0:03:01]} 11. Bc4 {[%clk 0:02:52]}  Nd7 {[%clk 0:03:01]} 12. O-O {[%clk 0:02:51]}  b6 {[%clk 0:03:02]} 13. Rfe1 {[%clk 0:02:50]}  Bb7 {[%clk 0:03:02]} 14. Re3 {[%clk 0:02:49]}  Rc8 {[%clk 0:02:55]} 15. Bb3 {[%clk 0:02:47]}  Nf6 {[%clk 0:02:51]} 16. Qe1 {[%clk 0:02:38]}  Re8 {[%clk 0:02:31]} 17. Rd1 {[%clk 0:02:26]}  Ng4 {[%clk 0:02:12]} 18. Re2 {[%clk 0:02:22]}  Ba6 {[%clk 0:02:08]} 19. Red2 {[%clk 0:02:22]}  Bc4 {[%clk 0:02:06]} 20. h3 {[%clk 0:02:20]}  Bxb3 {[%clk 0:02:01]} 21. axb3 {[%clk 0:02:16]}  Nf6 {[%clk 0:02:00]} 22. d5 {[%clk 0:02:13]}  exd5 {[%clk 0:01:49]} 23. e5 {[%clk 0:02:12]}  Qc7 {[%clk 0:01:43]} 24. Qe3 {[%clk 0:02:12]}  Ne4 {[%clk 0:01:39]} 25. Rd3 {[%clk 0:01:51]}  Nc3 {[%clk 0:01:23]} 26. R1d2 {[%clk 0:01:44]}  b5 {[%clk 0:01:13]} 27. b4 {[%clk 0:01:41]}  a5 {[%clk 0:01:10]} 28. bxa5 {[%clk 0:01:38]}  b4 {[%clk 0:01:10]} 29. a6 {[%clk 0:01:35]}  Ra8 {[%clk 0:00:56]} 30. Rb2 {[%clk 0:01:30]}  Qa5 {[%clk 0:00:32]} 31. Kh2 {[%clk 0:01:30]}  Rxa6 {[%clk 0:00:30]} 32. Rd4 {[%clk 0:01:30]}  Rb6 {[%clk 0:00:27]} 33. Rg4 {[%clk 0:01:27]}  Ne4 {[%clk 0:00:22]} 34. Qf4 {[%clk 0:01:20]}  Rg6 {[%clk 0:00:20]} 35. Rh4 {[%clk 0:01:08]}  Qc5 {[%clk 0:00:19]} 36. Kg1 {[%clk 0:00:33]}  Qc3 {[%clk 0:00:18]} 37. Ra2 {[%clk 0:00:29]}  b3 {[%clk 0:00:17]} 38. Ra7 {[%clk 0:00:28]}  Rf8 {[%clk 0:00:16]} 39. Rh5 {[%clk 0:00:17]}  b2 {[%clk 0:00:15]} 40. Rf5 {[%clk 0:00:17]}  Qc1+ {[%clk 0:00:15]} 41. Kh2 {[%clk 0:00:17]}  Qxf4+ {[%clk 0:00:15]} 42. Rxf4 {[%clk 0:00:01]}  b1=Q {[%clk 0:00:15]} 0-1


[Site "https://www.chess.com"]

[Event "Titled Tuesday Blitz June 13 Late 2023"]
[White "Ladan, Nicholas"]
[Black "Florianovitz, Derlei Alex"]
[WhiteFideId "30918855"]
[BlackFideId "2114178"]
[WhiteElo "2167"]
[BlackElo "1953"]
[Result "1-0"]
[Round "5"]
[TimeControl "180+2"]
[Date "2023.06.13"]
[WhiteClock "0:00:45"]
[BlackClock "0:00:49"]
[Board "125"]

1. b4 {[%clk 0:03:00]}  e5 {[%clk 0:02:54]} 2. Bb2 {[%clk 0:03:01]}  d6 {[%clk 0:02:52]} 3. e3 {[%clk 0:02:57]}  Nf6 {[%clk 0:02:51]} 4. c4 {[%clk 0:02:57]}  g6 {[%clk 0:02:51]} 5. Nf3 {[%clk 0:02:54]}  Bg7 {[%clk 0:02:51]} 6. d4 {[%clk 0:02:54]}  e4 {[%clk 0:02:51]} 7. Nfd2 {[%clk 0:02:54]}  c6 {[%clk 0:02:51]} 8. Nc3 {[%clk 0:02:54]}  d5 {[%clk 0:02:50]} 9. a4 {[%clk 0:02:32]}  O-O {[%clk 0:02:48]} 10. b5 {[%clk 0:02:31]}  Bg4 {[%clk 0:02:44]} 11. Be2 {[%clk 0:02:29]}  Bxe2 {[%clk 0:02:44]} 12. Qxe2 {[%clk 0:02:30]}  Nbd7 {[%clk 0:02:43]} 13. O-O {[%clk 0:02:26]}  Ne8 {[%clk 0:02:37]} 14. Ba3 {[%clk 0:02:23]}  dxc4 {[%clk 0:02:26]} 15. Bxf8 {[%clk 0:02:21]}  Kxf8 {[%clk 0:02:24]} 16. Ndxe4 {[%clk 0:02:18]}  cxb5 {[%clk 0:02:18]} 17. axb5 {[%clk 0:02:13]}  Nb6 {[%clk 0:02:18]} 18. Nc5 {[%clk 0:02:05]}  Nd6 {[%clk 0:02:11]} 19. Rfc1 {[%clk 0:01:55]}  Qe8 {[%clk 0:01:48]} 20. N5a4 {[%clk 0:01:41]}  Nxa4 {[%clk 0:01:31]} 21. Rxa4 {[%clk 0:01:42]}  a6 {[%clk 0:01:30]} 22. bxa6 {[%clk 0:01:36]}  Rxa6 {[%clk 0:01:31]} 23. Rxa6 {[%clk 0:01:35]}  bxa6 {[%clk 0:01:32]} 24. Qa2 {[%clk 0:01:35]}  Qc6 {[%clk 0:01:30]} 25. Qa4 {[%clk 0:01:29]}  Nb5 {[%clk 0:01:26]} 26. Na2 {[%clk 0:01:16]}  Nxd4 {[%clk 0:01:14]} 27. Qa3+ {[%clk 0:01:07]}  Kg8 {[%clk 0:01:10]} 28. exd4 {[%clk 0:01:07]}  Bxd4 {[%clk 0:01:10]} 29. Qb4 {[%clk 0:00:58]}  Qf6 {[%clk 0:01:07]} 30. Qxc4 {[%clk 0:00:48]}  Qxf2+ {[%clk 0:01:01]} 31. Kh1 {[%clk 0:00:49]}  Kg7 {[%clk 0:00:57]} 32. Rf1 {[%clk 0:00:48]}  Qh4 {[%clk 0:00:52]} 33. Qxf7+ {[%clk 0:00:45]}  Kh6 {[%clk 0:00:49]} 34. Qf4+ {[%clk 0:00:45]} 1-0


[Site "https://www.chess.com"]

[Event "Titled Tuesday Blitz June 13 Late 2023"]
[White "Kielinkei"]
[Black "Sala, Giulia"]
[BlackFideId "2840451"]
[WhiteElo "2455"]
[BlackElo "1769"]
[Result "1/2-1/2"]
[Round "5"]
[TimeControl "180+2"]
[Date "2023.06.13"]
[WhiteClock "0:00:02"]
[BlackClock "0:00:23"]
[Board "127"]

1. c4 {[%clk 0:03:00]}  e6 {[%clk 0:03:00]} 2. Nc3 {[%clk 0:02:58]}  d5 {[%clk 0:03:00]} 3. e3 {[%clk 0:02:58]}  Nf6 {[%clk 0:03:00]} 4. g4 {[%clk 0:02:54]}  h6 {[%clk 0:02:50]} 5. h3 {[%clk 0:02:43]}  Be7 {[%clk 0:02:49]} 6. Nf3 {[%clk 0:02:43]}  b6 {[%clk 0:02:46]} 7. Be2 {[%clk 0:02:36]}  Bb7 {[%clk 0:02:45]} 8. O-O {[%clk 0:02:35]}  Nbd7 {[%clk 0:02:40]} 9. cxd5 {[%clk 0:02:34]}  Nxd5 {[%clk 0:02:38]} 10. Nxd5 {[%clk 0:02:28]}  Bxd5 {[%clk 0:02:38]} 11. b3 {[%clk 0:02:27]}  Bf6 {[%clk 0:02:36]} 12. d4 {[%clk 0:02:22]}  O-O {[%clk 0:02:32]} 13. Bb2 {[%clk 0:02:19]}  c5 {[%clk 0:02:28]} 14. Qd2 {[%clk 0:02:13]}  Rc8 {[%clk 0:02:20]} 15. Rac1 {[%clk 0:02:12]}  cxd4 {[%clk 0:02:20]} 16. Bxd4 {[%clk 0:02:13]}  Bxf3 {[%clk 0:02:10]} 17. Bxf3 {[%clk 0:02:11]}  Ne5 {[%clk 0:02:10]} 18. Bg2 {[%clk 0:02:03]}  Ng6 {[%clk 0:02:03]} 19. Rxc8 {[%clk 0:01:59]}  Qxc8 {[%clk 0:02:04]} 20. Bxf6 {[%clk 0:01:59]}  gxf6 {[%clk 0:02:05]} 21. Rc1 {[%clk 0:01:57]}  Qb8 {[%clk 0:02:03]} 22. Qd7 {[%clk 0:01:45]}  Nh4 {[%clk 0:02:01]} 23. Qc7 {[%clk 0:01:36]}  Nxg2 {[%clk 0:01:49]} 24. Kxg2 {[%clk 0:01:26]}  Qa8+ {[%clk 0:01:49]} 25. Qc6 {[%clk 0:01:26]}  Qd8 {[%clk 0:01:43]} 26. Kg1 {[%clk 0:01:14]}  Qd2 {[%clk 0:01:39]} 27. Rc2 {[%clk 0:01:13]}  Qd1+ {[%clk 0:01:39]} 28. Kg2 {[%clk 0:01:13]}  h5 {[%clk 0:01:39]} 29. gxh5 {[%clk 0:00:59]}  Kh7 {[%clk 0:01:31]} 30. Rc4 {[%clk 0:00:39]}  f5 {[%clk 0:01:28]} 31. Rc1 {[%clk 0:00:33]}  Rg8+ {[%clk 0:01:25]} 32. Kh2 {[%clk 0:00:33]}  Qe2 {[%clk 0:01:20]} 33. Qc2 {[%clk 0:00:29]}  Qxh5 {[%clk 0:01:09]} 34. Qd1 {[%clk 0:00:27]}  Qh4 {[%clk 0:01:04]} 35. Qf3 {[%clk 0:00:26]}  Rd8 {[%clk 0:00:58]} 36. Rc7 {[%clk 0:00:22]}  Rd2 {[%clk 0:00:56]} 37. Kg2 {[%clk 0:00:11]}  Rxa2 {[%clk 0:00:45]} 38. Rxf7+ {[%clk 0:00:10]}  Kg6 {[%clk 0:00:46]} 39. Rf8 {[%clk 0:00:08]}  Kg7 {[%clk 0:00:37]} 40. Re8 {[%clk 0:00:08]}  Qg5+ {[%clk 0:00:32]} 41. Kh2 {[%clk 0:00:08]}  Kf7 {[%clk 0:00:23]} 42. Rc8 {[%clk 0:00:05]}  Kf6 {[%clk 0:00:18]} 43. Rf8+ {[%clk 0:00:04]}  Ke7 {[%clk 0:00:18]} 44. Rc8 {[%clk 0:00:05]}  Kf6 {[%clk 0:00:17]} 45. Rc7 {[%clk 0:00:04]}  Ra1 {[%clk 0:00:15]} 46. Qg3 {[%clk 0:00:02]}  Qxg3+ {[%clk 0:00:15]} 47. Kxg3 {[%clk 0:00:03]}  Rb1 {[%clk 0:00:16]} 48. Rxa7 {[%clk 0:00:02]}  Rxb3 {[%clk 0:00:16]} 49. h4 {[%clk 0:00:03]}  b5 {[%clk 0:00:17]} 50. Kf3 {[%clk 0:00:02]}  b4 {[%clk 0:00:17]} 51. Rb7 {[%clk 0:00:03]}  Rb1 {[%clk 0:00:17]} 52. Kf4 {[%clk 0:00:03]}  e5+ {[%clk 0:00:16]} 53. Kf3 {[%clk 0:00:03]}  b3 {[%clk 0:00:17]} 54. h5 {[%clk 0:00:04]}  Kg5 {[%clk 0:00:17]} 55. Rb5 {[%clk 0:00:02]}  e4+ {[%clk 0:00:17]} 56. Kg2 {[%clk 0:00:02]}  b2 {[%clk 0:00:18]} 57. Kh2 {[%clk 0:00:02]}  Kxh5 {[%clk 0:00:18]} 58. Rxf5+ {[%clk 0:00:02]}  Kg4 {[%clk 0:00:19]} 59. Rb5 {[%clk 0:00:02]}  Kf3 {[%clk 0:00:19]} 60. Kh3 {[%clk 0:00:01]}  Kxf2 {[%clk 0:00:20]} 61. Kg4 {[%clk 0:00:02]}  Kxe3 {[%clk 0:00:20]} 62. Kg3 {[%clk 0:00:03]}  Rg1+ {[%clk 0:00:20]} 63. Kh2 {[%clk 0:00:03]}  b1=Q {[%clk 0:00:21]} 64. Rg5 {[%clk 0:00:02]}  Qc2+ {[%clk 0:00:21]} 65. Kxg1 {[%clk 0:00:01]}  Qd1+ {[%clk 0:00:21]} 66. Kh2 {[%clk 0:00:02]}  Qe2+ {[%clk 0:00:22]} 67. Kh3 {[%clk 0:00:01]}  Qf3+ {[%clk 0:00:22]} 68. Kh2 {[%clk 0:00:01]}  Qf4+ {[%clk 0:00:22]} 69. Rg3+ {[%clk 0:00:01]}  Qxg3+ {[%clk 0:00:22]} 70. Kh1 {[%clk 0:00:02]}  Kd2 {[%clk 0:00:23]} 1/2-1/2


[Site "https://www.chess.com"]

[Event "Titled Tuesday Blitz June 13 Late 2023"]
[White "Torres Dominguez, David"]
[Black "liwadas82"]
[WhiteFideId "2220857"]
[WhiteElo "1999"]
[BlackElo "2448"]
[Result "1-0"]
[Round "5"]
[TimeControl "180+2"]
[Date "2023.06.13"]
[WhiteClock "0:01:35"]
[BlackClock "0:00:00"]
[Board "129"]

1. e4 {[%clk 0:02:53]}  e5 {[%clk 0:02:59]} 2. Bc4 {[%clk 0:02:52]}  Nf6 {[%clk 0:02:58]} 3. Nc3 {[%clk 0:02:52]}  Nc6 {[%clk 0:02:57]} 4. d3 {[%clk 0:02:52]}  Na5 {[%clk 0:02:53]} 5. Bb3 {[%clk 0:02:50]}  Nxb3 {[%clk 0:02:52]} 6. axb3 {[%clk 0:02:51]}  d6 {[%clk 0:02:48]} 7. Nge2 {[%clk 0:02:51]}  c6 {[%clk 0:02:39]} 8. O-O {[%clk 0:02:50]}  g6 {[%clk 0:02:29]} 9. f4 {[%clk 0:02:50]}  exf4 {[%clk 0:02:28]} 10. Bxf4 {[%clk 0:02:50]}  Bg7 {[%clk 0:02:27]} 11. Qd2 {[%clk 0:02:51]}  h5 {[%clk 0:02:11]} 12. Rae1 {[%clk 0:02:43]}  O-O {[%clk 0:01:53]} 13. Bg5 {[%clk 0:02:32]}  Qb6+ {[%clk 0:01:50]} 14. d4 {[%clk 0:02:23]}  Nh7 {[%clk 0:01:31]} 15. Be7 {[%clk 0:02:23]}  Re8 {[%clk 0:01:29]} 16. Bxd6 {[%clk 0:02:23]}  Bg4 {[%clk 0:01:20]} 17. e5 {[%clk 0:02:17]}  Rad8 {[%clk 0:01:10]} 18. Qf4 {[%clk 0:02:12]}  Be6 {[%clk 0:01:08]} 19. Ne4 {[%clk 0:02:05]}  Bd5 {[%clk 0:00:47]} 20. Nc5 {[%clk 0:01:58]}  Nf8 {[%clk 0:00:32]} 21. Nc3 {[%clk 0:01:57]}  Ne6 {[%clk 0:00:13]} 22. Qxf7+ {[%clk 0:01:55]}  Kh7 {[%clk 0:00:13]} 23. Nxd5 {[%clk 0:01:55]}  cxd5 {[%clk 0:00:04]} 24. Nxe6 {[%clk 0:01:54]}  Rxe6 {[%clk 0:00:03]} 25. Qxe6 {[%clk 0:01:52]}  Qxd4+ {[%clk 0:00:03]} 26. Kh1 {[%clk 0:01:51]}  Qxb2 {[%clk 0:00:03]} 27. Qe7 {[%clk 0:01:47]}  Rg8 {[%clk 0:00:02]} 28. Re2 {[%clk 0:01:43]}  Qc3 {[%clk 0:00:01]} 29. Ref2 {[%clk 0:01:41]}  Qd4 {[%clk 0:00:01]} 30. Rf7 {[%clk 0:01:40]}  Qe4 {[%clk 0:00:02]} 31. h3 {[%clk 0:01:37]}  h4 {[%clk 0:00:01]} 32. R7f4 {[%clk 0:01:35]}  Qe2 {[%clk 0:00:00]} 33. Rxh4+ {[%clk 0:01:35]} 1-0


[Site "https://www.chess.com"]

[Event "Titled Tuesday Blitz June 13 Late 2023"]
[White "Makaraci, Tunahan"]
[Black "Arun, Siddharth"]
[WhiteFideId "6356559"]
[BlackFideId "2079178"]
[WhiteElo "2160"]
[BlackElo "2343"]
[Result "1-0"]
[Round "5"]
[TimeControl "180+2"]
[Date "2023.06.13"]
[WhiteClock "0:02:04"]
[BlackClock "0:00:41"]
[Board "133"]

1. e4 {[%clk 0:03:00]}  c6 {[%clk 0:02:58]} 2. d4 {[%clk 0:02:58]}  d5 {[%clk 0:02:58]} 3. exd5 {[%clk 0:02:58]}  cxd5 {[%clk 0:02:58]} 4. c4 {[%clk 0:02:59]}  Nf6 {[%clk 0:02:58]} 5. Nc3 {[%clk 0:03:00]}  g6 {[%clk 0:02:58]} 6. Nf3 {[%clk 0:02:59]}  Bg7 {[%clk 0:02:57]} 7. cxd5 {[%clk 0:02:59]}  Nxd5 {[%clk 0:02:56]} 8. Bc4 {[%clk 0:02:59]}  Nb6 {[%clk 0:02:49]} 9. Bb3 {[%clk 0:02:59]}  O-O {[%clk 0:02:49]} 10. O-O {[%clk 0:02:58]}  Nc6 {[%clk 0:02:48]} 11. d5 {[%clk 0:02:59]}  Na5 {[%clk 0:02:48]} 12. Re1 {[%clk 0:02:59]}  Nxb3 {[%clk 0:02:43]} 13. axb3 {[%clk 0:03:00]}  Bg4 {[%clk 0:02:41]} 14. h3 {[%clk 0:03:00]}  Bf5 {[%clk 0:02:36]} 15. Bg5 {[%clk 0:02:57]}  Re8 {[%clk 0:02:28]} 16. g4 {[%clk 0:02:44]}  Bd7 {[%clk 0:02:10]} 17. Rxe7 {[%clk 0:02:41]}  Rxe7 {[%clk 0:02:00]} 18. d6 {[%clk 0:02:42]}  f6 {[%clk 0:02:00]} 19. dxe7 {[%clk 0:02:41]}  Qxe7 {[%clk 0:02:00]} 20. Be3 {[%clk 0:02:41]}  Rd8 {[%clk 0:01:47]} 21. Qc2 {[%clk 0:02:27]}  Bc6 {[%clk 0:01:43]} 22. Nd4 {[%clk 0:02:27]}  Nd5 {[%clk 0:01:17]} 23. Nxc6 {[%clk 0:02:23]}  bxc6 {[%clk 0:01:17]} 24. Nxd5 {[%clk 0:02:24]}  cxd5 {[%clk 0:01:16]} 25. Rxa7 {[%clk 0:02:23]}  Rd7 {[%clk 0:01:02]} 26. Qc8+ {[%clk 0:02:16]}  Rd8 {[%clk 0:01:02]} 27. Qc6 {[%clk 0:02:07]}  Qd6 {[%clk 0:00:41]} 28. Qb7 {[%clk 0:02:04]} 1-0


[Site "https://www.chess.com"]

[Event "Titled Tuesday Blitz June 13 Late 2023"]
[White "WindWhistler11"]
[Black "Gerbelli Neto, Eduardo"]
[BlackFideId "2103281"]
[WhiteElo "2556"]
[BlackElo "2178"]
[Result "1-0"]
[Round "5"]
[TimeControl "180+2"]
[Date "2023.06.13"]
[WhiteClock "0:00:08"]
[BlackClock "0:00:10"]
[Board "134"]

1. Nf3 {[%clk 0:03:00]}  Nf6 {[%clk 0:02:59]} 2. g3 {[%clk 0:02:59]}  c5 {[%clk 0:02:58]} 3. c4 {[%clk 0:02:59]}  Nc6 {[%clk 0:02:57]} 4. Bg2 {[%clk 0:02:59]}  d5 {[%clk 0:02:57]} 5. O-O {[%clk 0:02:57]}  e5 {[%clk 0:02:56]} 6. cxd5 {[%clk 0:02:56]}  Nxd5 {[%clk 0:02:56]} 7. Nc3 {[%clk 0:02:52]}  Nc7 {[%clk 0:02:56]} 8. b3 {[%clk 0:02:48]}  Be7 {[%clk 0:02:56]} 9. Bb2 {[%clk 0:02:48]}  O-O {[%clk 0:02:56]} 10. Rc1 {[%clk 0:02:49]}  f6 {[%clk 0:02:55]} 11. Na4 {[%clk 0:02:31]}  b6 {[%clk 0:02:52]} 12. Nh4 {[%clk 0:02:17]}  Bd7 {[%clk 0:02:36]} 13. e3 {[%clk 0:02:14]}  Rc8 {[%clk 0:02:29]} 14. Qc2 {[%clk 0:02:05]}  Nb4 {[%clk 0:02:23]} 15. Qb1 {[%clk 0:02:05]}  Bxa4 {[%clk 0:02:14]} 16. bxa4 {[%clk 0:02:03]}  Qd3 {[%clk 0:02:07]} 17. Nf5 {[%clk 0:01:41]}  Rfe8 {[%clk 0:01:56]} 18. a3 {[%clk 0:01:34]}  Qxb1 {[%clk 0:01:53]} 19. Rxb1 {[%clk 0:01:32]}  Nd3 {[%clk 0:01:54]} 20. Bc6 {[%clk 0:01:24]}  Bf8 {[%clk 0:01:35]} 21. Bxe8 {[%clk 0:01:12]}  Rxe8 {[%clk 0:01:36]} 22. Bc3 {[%clk 0:01:02]}  g6 {[%clk 0:01:30]} 23. Nh4 {[%clk 0:00:59]}  Nd5 {[%clk 0:01:27]} 24. a5 {[%clk 0:00:56]}  c4 {[%clk 0:01:22]} 25. axb6 {[%clk 0:00:54]}  axb6 {[%clk 0:01:22]} 26. Rb5 {[%clk 0:00:44]}  Nxc3 {[%clk 0:01:15]} 27. dxc3 {[%clk 0:00:43]}  Bc5 {[%clk 0:01:16]} 28. Nf3 {[%clk 0:00:38]}  Ra8 {[%clk 0:01:14]} 29. Ra1 {[%clk 0:00:35]}  Kf7 {[%clk 0:01:08]} 30. a4 {[%clk 0:00:34]}  Ra5 {[%clk 0:00:51]} 31. Nd2 {[%clk 0:00:23]}  Rxb5 {[%clk 0:00:40]} 32. axb5 {[%clk 0:00:24]}  Nb2 {[%clk 0:00:40]} 33. Ra2 {[%clk 0:00:14]}  Nd1 {[%clk 0:00:40]} 34. Rc2 {[%clk 0:00:15]}  Ke6 {[%clk 0:00:34]} 35. Nxc4 {[%clk 0:00:15]}  Kd5 {[%clk 0:00:35]} 36. Nd2 {[%clk 0:00:15]}  Ba3 {[%clk 0:00:28]} 37. Kf1 {[%clk 0:00:10]}  Nb2 {[%clk 0:00:26]} 38. c4+ {[%clk 0:00:10]}  Kc5 {[%clk 0:00:24]} 39. Ke2 {[%clk 0:00:10]}  Na4 {[%clk 0:00:21]} 40. Ne4+ {[%clk 0:00:10]}  Kb4 {[%clk 0:00:20]} 41. Nxf6 {[%clk 0:00:10]}  Nc3+ {[%clk 0:00:19]} 42. Kd3 {[%clk 0:00:10]}  Nd1 {[%clk 0:00:16]} 43. Nd5+ {[%clk 0:00:09]}  Kc5 {[%clk 0:00:16]} 44. Kd2 {[%clk 0:00:06]}  Nb2 {[%clk 0:00:16]} 45. Kc3 {[%clk 0:00:02]}  Na4+ {[%clk 0:00:14]} 46. Kb3 {[%clk 0:00:02]}  Bb4 {[%clk 0:00:13]} 47. Nxb4 {[%clk 0:00:03]}  g5 {[%clk 0:00:12]} 48. Nd3+ {[%clk 0:00:03]}  Kd6 {[%clk 0:00:12]} 49. Kxa4 {[%clk 0:00:04]}  e4 {[%clk 0:00:11]} 50. c5+ {[%clk 0:00:05]}  bxc5 {[%clk 0:00:11]} 51. Nxc5 {[%clk 0:00:06]}  Kc7 {[%clk 0:00:12]} 52. Nxe4+ {[%clk 0:00:07]}  Kb6 {[%clk 0:00:12]} 53. Kb4 {[%clk 0:00:07]}  h6 {[%clk 0:00:10]} 54. Rc6+ {[%clk 0:00:08]} 1-0


[Site "https://www.chess.com"]

[Event "Titled Tuesday Blitz June 13 Late 2023"]
[White "Srdanovic, Jovana"]
[Black "Francisco_Ferrari"]
[WhiteFideId "954810"]
[WhiteElo "2155"]
[BlackElo "2341"]
[Result "1-0"]
[Round "5"]
[TimeControl "180+2"]
[Date "2023.06.13"]
[WhiteClock "0:01:22"]
[BlackClock "0:00:13"]
[Board "136"]

1. d4 {[%clk 0:03:00]}  Nf6 {[%clk 0:02:57]} 2. c4 {[%clk 0:02:59]}  e6 {[%clk 0:02:55]} 3. Nf3 {[%clk 0:02:57]}  d5 {[%clk 0:02:54]} 4. Nc3 {[%clk 0:02:52]}  Be7 {[%clk 0:02:50]} 5. Bg5 {[%clk 0:02:51]}  O-O {[%clk 0:02:50]} 6. e3 {[%clk 0:02:51]}  h6 {[%clk 0:02:49]} 7. Bh4 {[%clk 0:02:49]}  b6 {[%clk 0:02:46]} 8. Rc1 {[%clk 0:02:47]}  Bb7 {[%clk 0:02:46]} 9. Bxf6 {[%clk 0:02:47]}  Bxf6 {[%clk 0:02:46]} 10. cxd5 {[%clk 0:02:47]}  exd5 {[%clk 0:02:46]} 11. b4 {[%clk 0:02:43]}  Nd7 {[%clk 0:02:13]} 12. Qb3 {[%clk 0:02:39]}  Nb8 {[%clk 0:01:41]} 13. Bd3 {[%clk 0:02:32]}  Re8 {[%clk 0:01:41]} 14. O-O {[%clk 0:02:31]}  g6 {[%clk 0:01:11]} 15. Rfe1 {[%clk 0:02:09]}  Bg7 {[%clk 0:01:00]} 16. h3 {[%clk 0:02:04]}  a6 {[%clk 0:00:54]} 17. a4 {[%clk 0:02:03]}  c6 {[%clk 0:00:48]} 18. Red1 {[%clk 0:01:52]}  Nd7 {[%clk 0:00:45]} 19. Bf1 {[%clk 0:01:51]}  Nf6 {[%clk 0:00:44]} 20. b5 {[%clk 0:01:50]}  cxb5 {[%clk 0:00:42]} 21. axb5 {[%clk 0:01:48]}  a5 {[%clk 0:00:43]} 22. Na4 {[%clk 0:01:48]}  Ne4 {[%clk 0:00:39]} 23. Rc2 {[%clk 0:01:46]}  Qd6 {[%clk 0:00:28]} 24. Rdc1 {[%clk 0:01:45]}  Rec8 {[%clk 0:00:28]} 25. Bd3 {[%clk 0:01:38]}  h5 {[%clk 0:00:17]} 26. Bxe4 {[%clk 0:01:24]}  dxe4 {[%clk 0:00:18]} 27. Ng5 {[%clk 0:01:24]}  Bd5 {[%clk 0:00:13]} 28. Rxc8+ {[%clk 0:01:22]} 1-0


[Site "https://www.chess.com"]